Cogmind - Beta 16.1 @@@ ROGUE MODE // 2026.04.26 @ 13:01:45 Player: the Result: Destroyed by Shrapnel Trap Performance ------------- Evolutions (0) 0 Regions Visited (2) 400 Robots Destroyed (25) 125 Value Destroyed (316) 316 Prototype IDs (0) 0 Alien Tech Used (0) 0 Bonus (0) 0 TOTAL SCORE: 841 Bonus ------- None Cogmind --------- Core Integrity 0/250 Matter 169/300 Energy 83/100 System Corruption 0% Temperature Cool (0) Movement Core (100) Ox1 Location -10/Subcaves Parts ------- > --- POWER (1) -------- (None) > --- PROPULSION (2) --- (None) > --- UTILITY (2) ------ (None) > --- WEAPON (2) ------- Subdweller Laser > --- INVENTORY (5) ---- Improved Terrain Scanner Subdweller Beam Cannon Grenade Launcher Peak State ------------ > --- POWER ------------ Ion Engine > --- PROPULSION ------- Light Treads Light Treads > --- UTILITY ---------- Improved Heat Sink Seismic Detector > --- WEAPON ----------- Assault Rifle Assault Rifle > --- INVENTORY -------- Improved Terrain Scanner Assault Rifle Grenade Launcher Mining Laser [Rating: 9] Favorites ----------- Power Ion Engine Engine Ion Engine Propulsion Light Treads Treads Light Treads Utility Seismic Detector Device Seismic Detector Weapon Assault Rifle Energy Gun Subdweller Laser Ballistic Gun Assault Rifle Ballistic Cannon Light Cannon Launcher Grenade Launcher Special Weapon Mining Laser Build | -11 -10 -10 ------- Run | Yrd Mat Sub Slots Evolved . | . . . Power . | . . . Propulsion . | . . . Utility . | . . . Weapon . | . . . Parts Attached 13 | 6 2 5 Power 1 | 1 . . Engine 1 | 1 . . Core . | . . . Reactor . | . . . Propulsion 2 | 2 . . Treads 2 | 2 . . Leg . | . . . Wheel . | . . . Hover . | . . . Flight . | . . . Utility 3 | 1 2 . Device 3 | 1 2 . Storage . | . . . Processor . | . . . Hackware . | . . . Protection . | . . . Artifact . | . . . Weapon 7 | 2 . 5 Energy Gun 1 | . . 1 Energy Cannon . | . . . Ballistic Gun 3 | 2 . 1 Ballistic Cannon 1 | . . 1 Launcher 1 | . . 1 Special Weapon 1 | . . 1 Impact Weapon . | . . . Slashing Weapon . | . . . Piercing Weapon . | . . . Special Melee Weapon . | . . . Unidentified Prototypes . | . . . Parts Lost 9 | . 1 8 Power 1 | . . 1 Propulsion 2 | . . 2 Utility 3 | . 1 2 Weapon 3 | . . 3 Highest Loss Streak 6 | . 1 6 To Critical Strikes . | . . . Average Backups 3 | 2 4 4 Power . | . . . Propulsion . | . . . Utility 1 | . 1 1 Weapon 2 | 1 3 3 Tool/Special . | . . . Unused Backups 3 | . 1 2 Power 1 | . 1 . Propulsion . | . . . Utility 1 | . . 1 Weapon 1 | . . 1 Tool/Special . | . . . Average Slot Usage (%) 72 | . 91 61 Engine 9 | . 14 5 Treads 18 | . 28 12 Device 19 | . 19 20 Ballistic Gun 19 | . 28 13 Ballistic Cannon 1 | . . 1 Special Weapon 3 | . . 6 Peak Build Rating 9 | 6 9 9 Average Rating 5 | 5 7 5 On Entrance 5 | . 6 9 Avg Prop Armor Cover (%) . | . . . Naked Turns 5 | . . 5 Heaviest Build 12 | 10 11 12 Greatest Support 40 | 40 40 40 Greatest Overweight (x) 1 | . . 1 Average Overweight (x) . | . . . Largest Inventory Capacity 5 | 5 5 5 Average Capacity 5 | 5 5 5 Most Carried 5 | 5 5 5 Average Carried 3 | 2 4 4 Final Capacity 5 | 5 5 5 Final Carried 5 | 5 5 3 Class Distribution -------------------- 100% | Mutant Dominant Class ---------------- Mutant | -10/Materials Mutant | -10/Subcaves Resources | -11 -10 -10 ----------- Run | Yrd Mat Sub Matter Collected 648 | 392 195 61 Remotely . | . . . Salvage Created 593 | 267 284 42 Parts 55 | 24 22 9 Haulers Intercepted . | . . . Recyclers Shooed 2 | 1 1 . Parts Field Recycled . | . . . Retrieved Matter . | . . . Parts Self-Destructed 4 | . . 4 Prevented . | . . . Parts Restored . | . . . Kills | -11 -10 -10 ------- Run | Yrd Mat Sub Combat Hostiles Destroyed 11 | . 6 5 Guns 7 | . 6 1 Cannons 1 | . . 1 AOE 3 | . . 3 Classes Destroyed 8 | 3 4 1 Worker 2 | 2 . . Builder 1 | . 1 . Tunneler 8 | 8 . . Recycler 2 | 1 1 . Watcher 1 | . 1 . Swarmer 7 | . 3 4 Grunt 3 | . 3 . Subdweller 1 | . . 1 Best Kill Streak 7 | 3 7 4 Combat Bots Only 6 | . 6 4 Max Kills in Single Turn 3 | 1 1 3 Gunslinging . | . . . Exploded 3 | . . 3 Melee . | . . . Uniques/NPCs Destroyed . | . . . Combat | -11 -10 -10 -------- Run | Yrd Mat Sub Hostile Shots Fired 92 | . 27 65 Missed 26 | . 5 21 Hits 66 | . 22 44 Projectile 66 | . 22 44 Damage Taken 1098 | . 223 875 Core 259 | . 26 233 Absorbed by Shields . | . . . Core Remaining (%) 100 | 100 . . Volleys Fired 87 | 29 23 35 Largest 2 | 2 2 2 Hottest 100 | 40 40 100 Shots Fired 159 | 58 46 55 Gun 132 | 58 46 28 Cannon 12 | . . 12 Launcher 2 | . . 2 Special 13 | . . 13 Kinetic 144 | 58 46 40 Thermal 13 | . . 13 Explosive 2 | . . 2 Electromagnetic . | . . . Robot Hit Streak 10 | 10 6 9 Robot Miss Streak 4 | 2 4 2 Penetration Max . | . . . Secondary Targets 1 | . 1 . Max Gunslinging Chain 1 | . 1 . Shots Hit Robots 94 | 41 21 32 Core Hits 36 | 12 15 9 Critical Kills . | . . . Critical Parts Destroyed . | . . . Critical Strikes 1 | . . 1 Blast 1 | . . 1 Melee Attacks . | . . . Impact . | . . . Slashing . | . . . Piercing . | . . . Sneak Attacks . | . . . Combat Hostiles . | . . . Follow-up Attacks . | . . . Damage Inflicted 1416 | 480 294 642 Guns 1046 | 480 294 272 Cannons 198 | . . 198 Explosions 172 | . . 172 Melee . | . . . Ramming . | . . . Kinetic 1244 | 480 294 470 Thermal . | . . . Explosive 172 | . . 172 Electromagnetic . | . . . Impact . | . . . Slashing . | . . . Piercing . | . . . Highest Corruption . | . . . Average Corruption . | . . . Corruption Purged . | . . . Corruption Blocked . | . . . Overload Shots . | . . . Overflow Damage 33 | . . 33 Projectiles . | . . . Explosions 33 | . . 33 Melee . | . . . Knockbacks 1 | . . 1 Impact . | . . . Kinetic 1 | . . 1 Secondary . | . . . Self-Inflicted Damage . | . . . Shots . | . . . Rammed . | . . . Targets Rammed . | . . . Kicked . | . . . Crushed . | . . . Highest Temperature 2 | . 2 . Average Temperature 2 | . 2 . Received Heat Transfer 186 | . 60 126 Siege Activations . | . . . Martial Activations . | . . . Shielding Activations . | . . . Robots Disrupted . | . . . Combat Hostiles . | . . . Robots Corrupted . | . . . Combat Hostiles . | . . . Parts Fried . | . . . Impact Corruptions . | . . . Robots Melted . | . . . Combat Hostiles . | . . . Parts Melted . | . . . Heat Transferred . | . . . Parts Sabotaged . | . . . Parts Stolen . | . . . Parts Stripped . | . . . Power Chain Reactions . | . . . Alert | -11 -10 -10 ------- Run | Yrd Mat Sub Maximum Alert Level . | . . . Low Security (%) 100 | 100 100 . Level 1 . | . . . Level 2 . | . . . Level 3 . | . . . Level 4 . | . . . Level 5 . | . . . High Security . | . . . Max Security . | . . . Peak Influence 181 | 15 181 . Initial . | . . . Average 61 | 2 97 . Influence Increases 415 | 55 250 110 Destroy 0b10 Robot/C 200 | . 120 80 Destroy 0b10 Robot/NC 70 | 55 15 . Destroy Leader 32 | . 32 . Successful Hack 7 | . 7 . Destroy Structure 1 | . 1 . Lose Combat Pursuer 105 | . 75 30 Influence Decreases 415 | 55 158 202 Entered New Map 45 | . . 45 Time Decay 310 | 55 148 107 Lost Part 60 | . 10 50 Squads Dispatched 3 | . 3 . Investigation 1 | . 1 . Extermination . | . . . Reinforcement 2 | . 2 . Assault . | . . . Garrison . | . . . Intercept . | . . . Searches Triggered . | . . . Construction Impeded . | . . . Haulers Reinforced . | . . . Active Scanning Responses . | . . . Cargo Convoy Interrupts . | . . . Stealth | -11 -10 -10 --------- Run | Yrd Mat Sub Distress Signals . | . . . Communications Jammed . | . . . Distress Signals . | . . . Times Spotted 22 | . 14 8 Peak Tracking Total 7 | . 7 6 Tactical Retreats 4 | . 3 1 Traps | -11 -10 -10 ------- Run | Yrd Mat Sub Traps Triggered 3 | . 1 2 Indirectly . | . . . Trap Hack Attempts . | . . . Triggered . | . . . Disarmed . | . . . Reprogrammed . | . . . Reused . | . . . Traps Extracted . | . . . Installed . | . . . Triggered . | . . . Machines | -11 -10 -10 ---------- Run | Yrd Mat Sub Machines Disabled . | . . . Max in Single Turn . | . . . Machines Repaired . | . . . Machines Dismantled . | . . . Machines Sabotaged . | . . . Overloaded Fab Kills . | . . . Hacking | -11 -10 -10 --------- Run | Yrd Mat Sub Machines Accessed 3 | . 2 1 Terminals 2 | . 2 . Fabricators . | . . . Repair Stations . | . . . Recycling Units . | . . . Scanalyzers . | . . . Garrison Access . | . . . Total Hacks 8 | . 4 4 Successful 5 | . 1 4 Failed 3 | . 3 . Catastrophic . | . . . Database Lockouts . | . . . Manual 2 | . 2 . Terminals 4 | . 4 . Fabricators . | . . . Repair Stations . | . . . Recycling Units . | . . . Scanalyzers . | . . . Garrison Access . | . . . Terminal Hacks 5 | . 1 4 Record 4 | . . 4 Branch Access Points 1 | . 1 . Fabricator Hacks . | . . . Repair Station Hacks . | . . . Recycling Unit Hacks . | . . . Scanalyzer . | . . . Garrison Access Hacks . | . . . Unauthorized Hacks . | . . . Terminals . | . . . Fabricators . | . . . Repair Stations . | . . . Recycling Units . | . . . Scanalyzers . | . . . Garrison Access . | . . . Data Cores Recovered . | . . . Used . | . . . Hacking Detections 2 | . 2 . Full Trace Events . | . . . Feedback Events . | . . . Feedback Blocked . | . . . Robot Schematics Acquired . | . . . Robots Built . | . . . Authchips . | . . . Time . | . . . Total Robot Build Rating . | . . . Part Schematics Acquired . | . . . Parts Built . | . . . Authchips . | . . . Time . | . . . Total Part Build Rating . | . . . Part Studies Acquired . | . . . Parts Repaired . | . . . Time . | . . . Parts Recycled . | . . . Recycled Matter . | . . . Retrieved Matter . | . . . Retrieved Components . | . . . Parts Scanalyzed . | . . . Part Schematics Acquired . | . . . Parts Damaged . | . . . Bothacking | -11 -10 -10 ------------ Run | Yrd Mat Sub Used RIF Installer . | . . . Robots Hacked . | . . . Non-combat . | . . . Combat . | . . . Robot Hacks Applied . | . . . Relay Couplers Released . | . . . Fabnet Peak Effective % . | . . . Robots Rewired . | . . . Allies Hacked . | . . . Hacks Repelled . | . . . Allies | -11 -10 -10 -------- Run | Yrd Mat Sub Total Allies . | . . . Largest Group . | . . . Highest-Rated Group . | . . . Highest-Rated Ally . | . . . Total Orders . | . . . Ally Attacks . | . . . Total Damage . | . . . Kills . | . . . Allies Corrupted . | . . . Allies Melted . | . . . Intel | -11 -10 -10 ------- Run | Yrd Mat Sub Active Infowar (turns) 1201 | 204 361 636 Seismic 1201 | 204 361 636 Robot Analysis Total . | . . . Derelict Logs Recovered 1 | . . 1 Drone Launches . | . . . Drone Recoveries . | . . . Exploration | -11 -10 -10 ------------- Run | Yrd Mat Sub Turns Passed 1297 | 247 408 642 Spaces Moved 837 | 88 195 554 Core 431 | 3 . 428 Treads 406 | 85 195 126 Legs . | . . . Wheels . | . . . Hover . | . . . Flight . | . . . Fastest Speed 50 | 50 160 50 Average Speed 105 | 156 160 77 Slowest Speed 160 | 160 160 160 Overloaded Moves . | . . . Propulsion Burnouts . | . . . Robots Hopped . | . . . Potential Cave-ins . | . . . Cave-ins Triggered . | . . . Exploration Rate (%) 31 | 5 49 40 Regions Visited 2 Branch Regions 1 Pre-discovered Areas 1 | . . 1 Known Exits Taken . | . . . Unknown Exits Taken 2 | 1 1 . Scrap Searched . | . . . Spaces Dug 6 | . . 6 Terrain Destroyed 9 | . . 9 Melee . | . . . Projectile . | . . . AOE 9 | . . 9 Terrain Rammed . | . . . Walls Destroyed . | . . . Machines Disabled . | . . . Actions | -11 -10 -10 --------- Run | Yrd Mat Sub Total 1067 | 137 245 685 Wait 117 | 10 23 84 Move 835 | 87 194 554 Hop . | . . . Pick Up 9 | 5 2 2 Fast Attach 7 | 6 1 . Attach 5 | . 1 4 Detach . | . . . Swap 4 | . . 4 Drop 3 | . 1 2 Fire 87 | 29 23 35 Melee . | . . . Ram . | . . . Kick . | . . . Crush . | . . . Escape Stasis . | . . . Rewire . | . . . Trap . | . . . Miscellaneous . | . . . Route ------- -11/Scrapyard -10/Materials (discovered 3 exits: [*Mat] / Min / *Sub) -10/Subcaves History --------- Turn | Location | Event 53 | -11/Scrapyard | Discovered new exit (range 15) 248 | -11/Scrapyard | Entered Materials 300 | -10/Materials | Build established: Mutant 459 | -10/Materials | Discovered new exit (range 10) 554 | -10/Materials | Identified exit to Mines 632 | -10/Materials | Discovered new exit (range 16) 656 | -10/Materials | Entered Subcaves 855 | -10/Subcaves | Visited Clippyterm 860 | -10/Subcaves | Learned Factory fabricator intel 949 | -10/Subcaves | Core integrity fell below 50% 980 | -10/Subcaves | Core integrity fell below 20% 989 | -10/Subcaves | Lost 6 parts (1p2n1u2w) 1174 | -10/Subcaves | Shifting Twisted Machinery released Sub. Laser 1298 | -10/Subcaves | Destroyed by Shrapnel Trap Last Messages --------------- 00990_ Subatomizers dissect the Sub. Beam Cannon. 00994_ The unstable cave ceiling collapses. 01000_ Acquired Sub. Beam Cannon. 01001_ Acquired 11 matter. 01002_ Acquired 1 matter. 01004_ Acquired 3 matter. 01009_ Dropped Assault Rifle. 01010_ Dropped Lgt. Cannon. 01078_ Acquired 21 matter. 01083_ Subatomizers dissect the Disposable Heat Sink. Sub. Laser falls loose from the Twisted Machinery. 01201_ Acquired Sub. Laser. 01213_ Acquired derelict log, extracted data. World map updated: -10/Materials. 01292_ Triggered Shrapnel Trap. 01292_ An expanding cloud of shrapnel blasts out in all directions. 01292_ Seismic Detector destroyed. 01292_ Mining Laser destroyed. 01298_ Triggered Shrapnel Trap. 01298_ An expanding cloud of shrapnel blasts out in all directions. Map ----- +----------------------------------------------------+ | ?????????????????????????????????????????????????? | | ?????????????????????????????????????????????????? | | ?????????????????????????????????????????????????? | | ?????????????????????????????????????????????????? | | ?????????????????????????#???????????????????????? | | ?????????????????????#?? ??????????????????????? | | ????????????????????# ?? ?????????????????????? | | ???????????????????? ??? ??????????????###????? | | ???????????????????? ???? ?????????????# ##???? | | ???????????????????? ????? ###?????????## ##??? | | ???????????????????# ??????# #?????????# #??? | | ???????????????????# ???????# ####??????## #### | | ???????????????????# ???????# #???????# ## | | ??????????????????## #??###### ##?????## ## | | ?????????????????## #?## ## ##??### | | ?????????????????# ### #### | | ?????????????##??# ## | | ????????????## ### | | ????????????# | | ????????????# ### | | ??????# ### ##?# | | ???????# ############# | | ???????## ##???????# | | ????????# ## ######??# ###^ | | ?????? ??# #### #?# | | ??????? ?????# @ #?# | | ??????????????# #??## | | ??????????????## ### ## ##???## | | ???????????????## ##?###### ##?????## | | ????????????????# #?#####"## ##???????# | | ????????????????# #?# "" "" #????????## | | ???????????????# ?# #?????????## | | ???????????????# ?###" ##??????????# # | | ???????????????#######???#"" ##???????????## ## | | ?????????????????????????# """"##?????????????###? | | ?????????????????????????#######?????????????????? | | ?????????????????????????????????????????????????? | | ?????????????????????????????????????????????????? | | ?????????????????????????????????????????????????? | | ?????????????????????????????????????????????????? | | ?????????????????????????????????????????????????? | | ?????????????????????????????????????????????????? | | ?????????????????????????????????????????????????? | | ?????????????????????????????????????????????????? | | ?????????????????????????????????????????????????? | | ?????????????????????????????????????????????????? | | ?????????????????????????????????????????????????? | | ?????????????????????????????????????????????????? | | ?????????????????????????????????????????????????? | | | +----------------------------------------------------+ Best States ------------- Heat Dissipation 39 Energy Generation 10 Energy Capacity 250 Matter Stores 300 Matter Capacity 300 Sight Range 16 Terrain Scan Density 10 Evasion (%) 50 Recoil Reduction 2 Item Schematics ----------------- None Robot Schematics ------------------ None Fabricated ------------ Nothing Repaired ---------- Nothing Studied --------- None Alien Tech Used ----------------- None Achievements -------------- None Challenges ------------ None Game ------ Seed SpacefoldTargetingInjector Manual? 0 Play Time 00:11:26 Cumulative 717.6 hours Start 2026.04.26 @ 12:54:26 End 2026.04.26 @ 13:01:45 Sessions 1 Manual Loads 0 Difficulty Rogue Special Mode None Game No. 397 Rogue 397 Adventurer 0 Explorer 0 Win Type - Total 32 Types 15/2/6/2/1/1/1/2/1/1 Lore% 94 Gallery% 89 Achievement% 80 Wizard Run 0 Options --------- Layout 0 ASCII 0 Keyboard 0 Movement Numpad Keybinds 0 Fullscreen 2 Font 24/Smallcaps Map View 76x50 Zoom Use 0% Tactical HUD 1 Map Filters NONE Filters NONE Steam 1 RUN: 1aa3b1b1-55ce-49cb-a158-c99718d39dc5